Cogmind - Beta 10.2 @@@ ROGUE MODE // 2022.01.15 @ 23:21:34 Player: Phaethon Result: Destroyed by D-53 Grenadier with Mini Grenade Launcher Performance ------------- Evolutions (0) 0 Regions Visited (2) 400 Robots Destroyed (36) 180 Value Destroyed (521) 521 Prototype IDs (0) 0 Alien Tech Used (0) 0 Bonus (0) 0 TOTAL SCORE: 1101 Bonus ------- None Cogmind --------- Core Integrity 0/250 Matter 292/300 Energy 123/125 System Corruption 0% Temperature Cool (0) Movement Rolling (110) Ox3 Location -10/Mines Parts ------- > --- POWER (1) -------- Light Ion Engine > --- PROPULSION (2) --- Wheel Wheel > --- UTILITY (2) ------ High-capacity Storage Unit High-capacity Storage Unit > --- WEAPON (2) ------- Assault Rifle Light Assault Rifle > --- INVENTORY (20) --- Ion Engine Wheel Wheel High-capacity Storage Unit High-capacity Storage Unit High-capacity Matter Pod (200) Faulty Experimental Sensor Array Targeting Computer Utility Shielding Light Armor Plating Light Armor Plating Light Armor Plating Light Armor Plating Hacking Suite Hacking Suite Assault Rifle Grenade Launcher Grenade Launcher Rocket Launcher Datajack Peak State ------------ > --- POWER ------------ Light Ion Engine > --- PROPULSION ------- Wheel Wheel > --- UTILITY ---------- High-capacity Storage Unit High-capacity Storage Unit > --- WEAPON ----------- Light Assault Rifle Light Assault Rifle > --- INVENTORY -------- Ion Engine Wheel Wheel High-capacity Storage Unit High-capacity Storage Unit High-capacity Matter Pod Experimental Sensor Array Targeting Computer Utility Shielding Light Armor Plating Light Armor Plating Light Armor Plating Light Armor Plating Hacking Suite Hacking Suite Assault Rifle Assault Rifle Grenade Launcher Rocket Launcher Datajack [Rating: 10] Favorites ----------- Power Light Ion Engine Engine Light Ion Engine Propulsion Wheel Wheel Wheel Utility High-capacity Storage Unit Storage High-capacity Storage Unit Protection Light Armor Plating Weapon Assault Rifle Energy Gun Medium Laser Ballistic Gun Assault Rifle Launcher Grenade Launcher Build | -11 -10 -10 ------- Run | Scr Mat Min Slots Evolved . | . . . Power . | . . . Propulsion . | . . . Utility . | . . . Weapon . | . . . Parts Attached 34 | 6 24 4 Power 6 | 1 4 1 Engine 6 | 1 4 1 Core . | . . . Reactor . | . . . Propulsion 9 | 2 7 . Treads . | . . . Leg . | . . . Wheel 9 | 2 7 . Hover . | . . . Flight . | . . . Utility 7 | 1 6 . Device . | . . . Storage 6 | 1 5 . Processor . | . . . Hackware . | . . . Protection 1 | . 1 . Artifact . | . . . Weapon 12 | 2 7 3 Energy Gun 1 | . 1 . Energy Cannon . | . . . Ballistic Gun 10 | 2 5 3 Ballistic Cannon . | . . . Launcher 1 | . 1 . Special Weapon . | . . . Impact Weapon . | . . . Slashing Weapon . | . . . Piercing Weapon . | . . . Special Melee Weapon . | . . . Unidentified Prototypes . | . . . Parts Lost 2 | . 1 1 Power . | . . . Propulsion . | . . . Utility . | . . . Weapon 2 | . 1 1 Highest Loss Streak 1 | . 1 1 Average Slot Usage (%) 99 | . 98 100 Engine 14 | . 14 14 Wheel 28 | . 28 28 Storage 25 | . 24 28 Protection 1 | . 2 . Energy Gun 3 | . 3 . Ballistic Gun 24 | . 24 27 Naked Turns . | . . . Heaviest Build 73 | 12 73 73 Greatest Support 32 | 26 32 20 Greatest Overweight (x) 3 | . 3 3 Average Overweight (x) 1 | . . 3 Largest Inventory Capacity 20 | 6 20 20 Average Capacity 15 | 5 14 20 Most Carried 20 | 4 20 20 Average Carried 13 | 1 12 18 Final Capacity 20 | 6 20 20 Final Carried 20 | 4 18 20 Class Distribution -------------------- 72% | Mutant 16% | Hauler-Mutant 11% | Scavenger-Mutant Dominant Class ---------------- Mutant | -10/Materials Scavenger-Mutant | -10/Mines Resources | -11 -10 -10 ----------- Run | Scr Mat Min Matter Collected 1031 | 268 657 106 Remotely . | . . . Salvage Created 1149 | 89 964 96 Parts 81 | 3 67 11 Haulers Intercepted 2 | . 2 . Recyclers Shooed 3 | . 3 . Parts Field Recycled . | . . . Retrieved Matter . | . . . Parts Self-Destructed . | . . . Prevented . | . . . Kills | -11 -10 -10 ------- Run | Scr Mat Min Combat Hostiles Destroyed 20 | . 17 3 Guns 18 | . 15 3 AOE 2 | . 2 . Classes Destroyed 9 | 1 8 . Worker 2 | . 1 1 Builder 1 | . 1 . Tunneler 2 | . 1 1 Hauler 2 | . 2 . Recycler 4 | 1 3 . Operator 2 | . 2 . Watcher 3 | . 3 . Swarmer 12 | . 9 3 Grunt 8 | . 8 . Best Kill Streak 4 | 1 4 3 Combat Bots Only 3 | . 3 3 Max Kills in Single Turn 2 | 1 2 1 Gunslinging 1 | . 1 . Exploded 2 | . 2 . Melee . | . . . Uniques/NPCs Destroyed . | . . . Combat | -11 -10 -10 -------- Run | Scr Mat Min Damage Taken 949 | . 668 281 Core 284 | . 149 135 Absorbed by Shields . | . . . Core Remaining (%) 100 | 100 . . Volleys Fired 106 | 2 90 14 Largest 2 | 2 2 2 Hottest 70 | 40 70 40 Shots Fired 211 | 4 179 28 Gun 210 | 4 178 28 Cannon . | . . . Launcher 1 | . 1 . Special . | . . . Kinetic 196 | 4 164 28 Thermal 14 | . 14 . Explosive 1 | . 1 . Electromagnetic . | . . . Robot Hit Streak 9 | 3 9 5 Robot Miss Streak 5 | 1 5 3 Penetration Max . | . . . Secondary Targets 5 | . 5 . Max Gunslinging Chain 1 | . 1 . Shots Hit Robots 124 | 3 105 16 Core Hits 57 | 1 47 9 Critical Hits 2 | . 1 1 Critical Kills 1 | . 1 . Critical Parts Destroyed 1 | . . 1 Melee Attacks . | . . . Impact . | . . . Slashing . | . . . Piercing . | . . . Sneak Attacks . | . . . Combat Hostiles . | . . . Follow-up Attacks . | . . . Damage Inflicted 1499 | 40 1290 169 Guns 1413 | 40 1204 169 Cannons . | . . . Explosions 86 | . 86 . Melee . | . . . Ramming . | . . . Kinetic 1297 | 40 1088 169 Thermal 116 | . 116 . Explosive 86 | . 86 . Electromagnetic . | . . . Impact . | . . . Slashing . | . . . Piercing . | . . . Highest Corruption . | . . . Average Corruption . | . . . Corruption Purged . | . . . Overload Shots . | . . . Overflow Damage . | . . . Projectiles . | . . . Explosions . | . . . Melee . | . . . Knockbacks . | . . . Impact . | . . . Kinetic . | . . . Secondary . | . . . Self-Inflicted Damage . | . . . Shots . | . . . Rammed . | . . . Targets Rammed . | . . . Kicked . | . . . Crushed . | . . . Highest Temperature 57 | . 57 . Average Temperature 14 | . 14 . Received Heat Transfer 198 | . 198 . Siege Activations . | . . . Robots Corrupted . | . . . Combat Hostiles . | . . . Parts Fried . | . . . Impact Corruptions . | . . . Robots Melted . | . . . Combat Hostiles . | . . . Parts Melted . | . . . Heat Transferred 333 | . 333 . Parts Sabotaged . | . . . Parts Stolen . | . . . Parts Stripped . | . . . Power Chain Reactions . | . . . Missiles Intercepted . | . . . Alert | -11 -10 -10 ------- Run | Scr Mat Min Peak Influence 286 | 5 286 98 Initial 28 | . 3 28 Average 113 | 2 126 80 Maximum Alert Level 1 | . 1 . Low Security (%) 86 | 100 83 100 Level 1 13 | . 16 . Level 2 . | . . . Level 3 . | . . . Level 4 . | . . . Level 5 . | . . . High Security . | . . . Max Security . | . . . Squads Dispatched 4 | . 4 . Investigation 1 | . 1 . Extermination . | . . . Reinforcement 3 | . 3 . Assault . | . . . Garrison . | . . . Intercept . | . . . Construction Impeded . | . . . Haulers Reinforced . | . . . Stealth | -11 -10 -10 --------- Run | Scr Mat Min Distress Signals 1 | . 1 . Communications Jammed . | . . . Distress Signals . | . . . Times Spotted 34 | . 29 5 Peak Tracking Total 4 | . 4 3 Tactical Retreats 1 | . 1 . Traps | -11 -10 -10 ------- Run | Scr Mat Min Traps Triggered 1 | . 1 . Indirectly . | . . . Trap Hack Attempts . | . . . Triggered . | . . . Disarmed . | . . . Reprogrammed . | . . . Reused . | . . . Traps Extracted . | . . . Installed . | . . . Triggered . | . . . Machines | -11 -10 -10 ---------- Run | Scr Mat Min Machines Disabled . | . . . Max in Single Turn . | . . . Machines Sabotaged . | . . . Garrisons Compromised . | . . . Overloaded Fab Kills . | . . . Fab Network Shutdowns . | . . . Hacking | -11 -10 -10 --------- Run | Scr Mat Min Machines Accessed 6 | . 6 . Terminals 5 | . 5 . Fabricators . | . . . Repair Stations . | . . . Recycling Units 1 | . 1 . Scanalyzers . | . . . Garrison Access . | . . . Total Hacks 20 | . 20 . Successful 13 | . 13 . Failed 6 | . 6 . Catastrophic . | . . . Database Lockouts 1 | . 1 . Manual 17 | . 17 . Terminals 18 | . 18 . Fabricators . | . . . Repair Stations . | . . . Recycling Units 2 | . 2 . Scanalyzers . | . . . Garrison Access . | . . . Terminal Hacks 6 | . 6 . Robot Analysis 3 | . 3 . Unreport Threat 1 | . 1 . Locate Traps 1 | . 1 . Zone Layout 1 | . 1 . Fabricator Hacks . | . . . Repair Station Hacks . | . . . Recycling Unit Hacks 1 | . 1 . Report Inventory 1 | . 1 . Scanalyzer . | . . . Garrison Access Hacks . | . . . Unauthorized Hacks 6 | . 6 . Terminals 5 | . 5 . Botnet 5 | . 5 . Fabricators . | . . . Repair Stations . | . . . Recycling Units 1 | . 1 . Mask 1 | . 1 . Scanalyzers . | . . . Garrison Access . | . . . Data Cores Recovered . | . . . Used . | . . . Hacking Detections 5 | . 5 . Full Trace Events . | . . . Feedback Events . | . . . Feedback Blocked . | . . . Robot Schematics Acquired . | . . . Robots Built . | . . . Matter . | . . . Time . | . . . Total Robot Build Rating . | . . . Part Schematics Acquired . | . . . Parts Built . | . . . Matter . | . . . Time . | . . . Total Part Build Rating . | . . . Parts Repaired . | . . . Time . | . . . Parts Recycled . | . . . Recycled Matter . | . . . Retrieved Matter . | . . . Retrieved Components . | . . . Parts Scanalyzed . | . . . Part Schematics Acquired . | . . . Parts Damaged . | . . . Bothacking | -11 -10 -10 ------------ Run | Scr Mat Min Used RIF Installer . | . . . Robots Hacked . | . . . Non-combat . | . . . Combat . | . . . Robot Hacks Applied . | . . . Relay Couplers Released . | . . . Robots Rewired . | . . . Allies Hacked . | . . . Hacks Repelled . | . . . Allies | -11 -10 -10 -------- Run | Scr Mat Min Total Allies . | . . . Largest Group . | . . . Highest-Rated Group . | . . . Highest-Rated Ally . | . . . Total Orders . | . . . Ally Attacks . | . . . Total Damage . | . . . Kills . | . . . Allies Corrupted . | . . . Allies Melted . | . . . Intel | -11 -10 -10 ------- Run | Scr Mat Min Robot Analysis Total 3 | . 3 . Derelict Logs Recovered 1 | . . 1 Drone Launches . | . . . Drone Recoveries . | . . . Exploration | -11 -10 -10 ------------- Run | Scr Mat Min Turns Passed 1319 | 54 1049 216 Spaces Moved 901 | 42 705 154 Core 3 | 3 . . Treads . | . . . Legs . | . . . Wheels 898 | 39 705 154 Hover . | . . . Flight . | . . . Fastest Speed 50 | 50 90 110 Average Speed 100 | 85 99 110 Slowest Speed 110 | 90 110 110 Overloaded Moves . | . . . Propulsion Burnouts . | . . . Robots Hopped . | . . . Cave-ins Triggered . | . . . Exploration Rate (%) 43 | 2 97 32 Regions Visited 2 Branch Regions 1 Pre-discovered Areas . | . . . Known Exits Taken . | . . . Unknown Exits Taken 2 | 1 1 . Scrap Searched . | . . . Spaces Dug . | . . . Terrain Destroyed 13 | . 13 . Melee . | . . . Projectile . | . . . AOE 13 | . 13 . Terrain Rammed . | . . . Walls Destroyed . | . . . Machines Disabled . | . . . Actions | -11 -10 -10 --------- Run | Scr Mat Min Total 1125 | 53 893 179 Wait 29 | . 29 . Move 899 | 41 704 154 Hop . | . . . Pick Up 30 | 4 22 4 Fast Attach 8 | 6 2 . Attach 3 | . 2 1 Detach . | . . . Swap 23 | . 20 3 Drop 27 | . 24 3 Fire 106 | 2 90 14 Melee . | . . . Ram . | . . . Kick . | . . . Crush . | . . . Escape Stasis . | . . . Rewire . | . . . Trap . | . . . Miscellaneous . | . . . Route ------- -11/Scrapyard -10/Materials (discovered 4 exits: [*Mat x3] / [*Min]) -10/Mines History --------- Turn | Location | Event 32 | -11/Scrapyard | Discovered new exit (range 15) 55 | -11/Scrapyard | Entered Materials 298 | -10/Materials | Discovered new exit (range 11) 309 | -10/Materials | Build established: Mutant 544 | -10/Materials | Discovered new exit (range 16) 667 | -10/Materials | Central database locked down 837 | -10/Materials | Core integrity fell below 50% 931 | -10/Materials | Discovered new exit (range 8) 997 | -10/Materials | Discovered new exit (range 17) 1104 | -10/Materials | Entered Mines 1188 | -10/Mines | Learned location of 2 exits from Materials 1232 | -10/Mines | Found a damaged Exp. Sensor Array with a note attached 1235 | -10/Mines | Found Prototype Device 1283 | -10/Mines | Received a Rocket Launcher from a helpful Derelict 1312 | -10/Mines | Assembled infested the area 1317 | -10/Mines | Core integrity fell below 20% 1320 | -10/Mines | Destroyed by D-53 Grenadier with Mini Grenade Launcher Last Messages --------------- the wall? Done." 01282_ F6-RBP(g): "Need a small hole in the wall? Leave that to the mining laser wimps, I say!" 01283_ F6-RBP(g): "Would you like a rocket launcher? I know I would if I were you, so I'm going to lend you mine." 01283_ F6-RBP(g) slips back into the shadows. 01285_ Dropped Grenade Launcher. 01285_ Acquired Rocket Launcher. 01288_ Dropped Lgt. Assault Rifle. 01289_ Acquired Grenade Launcher. 01290_ T-07 Excavator suffers critical hit. 01290_ Destroyed Mining Laser. 01290_ T-07 Excavator destroyed. 01294_ Acquired 18 matter. 01312_ ALERT: Infestation in the mines, dispatching Demolisher response squad. 01313_ K-01 Serf destroyed. 01316_ Acquired 4 matter. 01316_ C-30 ARC bursts open, deploying its payload. 01316_ D-53 Grenadier unfolds itself. Map ----- +----------------------------------------------------+ | | | | | | | | | | | | | | | | | | | | | | | | | | | | | | | | | | | ?????????????????????????????????????????????????? | | ?????????????????????????????????????????????????? | | ?????????????????????????????????????????????????? | | ???????????????????????###?##????????????????????? | | ?????????????????????### # ##???####????????????? | | ?????????????????????# ##?## ####?????????? | | ?????????????????????# ### ##????????? | | ?????????????????????# = #????????? | | ?????????????????????# @ #????????? | | ?????????????????????# ##???????? | | ?????????????????????# dd ## #???????? | | ?????????????????????# ##### #???????? | | ?????????????????????####%# ##???## #???????? | | ????????????????????????# ###?????# ##???????? | | ???????????????????????? ???????## ##????????? | | ???????????????????????? ????????## ##?????????? | | ???????????????????????? ""?????????# #????###???? | | ???????????????????????? ""?????????# #??## ##??? | | ???????????????????????? ""?????????# #?## #??? | | ???????????????????????? ???????????#%#?# #??? | | ????????????????????????#???????????#[### #??? | | ????????????????????????????????????#!= #?? | | ????????????????????????????????????# #### #? | | ????????????????????????????????????# #??### #? | | ????????????????????????????????????# #?????# ##? | | ????????????????????????????????????# #??????###?? | | ????????????????????????????????????# #??????????? | | ????????????????????????????????????# #??????????? | | ????????????????????????????????????# #??????????? | | ????????????????????????????????????# #??????????? | | ????????????????????????????????????# #??????????? | | ????????????????????????????????????# #??????????? | | ????????????????????????????????????# #??????????? | +----------------------------------------------------+ Best States ------------- Heat Dissipation 25 Energy Generation 10 Energy Capacity 250 Matter Stores 300 Matter Capacity 300 Sight Range 16 Terrain Scan Density 10 Armor Coverage 150 Evasion (%) 44 Item Schematics ----------------- None Robot Schematics ------------------ None Fabricated ------------ Nothing Alien Tech Used ----------------- None Achievements -------------- None Challenges ------------ None Game ------ Seed ExplosiveRocketMultirail Manual? 0 Play Time 00:18:16 Cumulative 191.5 hours Start 2022.01.15 @ 23:01:07 End 2022.01.15 @ 23:21:34 Sessions 1 Manual Loads 0 Difficulty Rogue Special Mode None Game No. 45 Rogue 45 Adventurer 0 Explorer 0 Win Type - Total 9 Types 6/2/0/0/0/0/1/0/0 Lore% 85 Gallery% 77 Achievement% 68 Wizard Run 0 Options --------- ASCII 0 Keyboard 0 Movement Vi Keybinds 0 Fullscreen 1 Font 36/Smallcaps Map View 76x50 Tactical HUD 1 Map Filters NONE Filters NONE Steam 1 RUN: 651c8697-caa3-44af-b013-ef0d774bfb4f